{"text_format":"3","workbook":"xlsx","n_sheets":9,"sheets":["Cover Page","Air-con Spares ","Chemical Spares","Electrical Spares","Fire Systems","General Spares","Handyman Spares","Mechanical Spares","Plumbing Spares"],"not_rendered":{"images":1,"defined_names":11},"read":"whole","date_system":"1900"}

{"sheet":"Cover Page","index":0,"n_rows":21,"n_cols":4,"rows_kept":21,"merged":[[0,0,12,4],[13,0,13,4],[23,0,23,4]]}
{"$rows_empty":13}
["PRICING SUBMISSION"]
[]
[]
["RFP NO:",null,null,"RFP No. 3662/28/11/2024"]
[]
["RFP NAME:",null,null,"Supply and delivery of Various Spares on an “as and when” required basis for five (5) years period to the CSIR.  "]
[]
["BIDDER NAME"]

{"sheet":"Air-con Spares ","index":1,"n_rows":35,"n_cols":44,"rows_kept":35,"merged":[[0,0,0,3],[1,0,1,3],[2,0,2,1],[3,4,3,11],[3,12,3,19],[3,20,3,27],[3,28,3,35],[3,36,3,43],[27,0,27,1],[28,0,28,1],[31,0,31,3],[32,0,32,3]]}
["Supply and delivery of Various Spares on an “as and when” required basis for five (5) years.  "]
["RFP: 0000/00/00/2024"]
["Bidder's Name",null,{"$f":"'Cover Page'!D21","v":0}]
[{"$nulls":4},"Year 1 ",{"$nulls":7},"Year 2",{"$nulls":7},"Year 3",{"$nulls":7},"Year 4",{"$nulls":7},"Year 5"]
["Category","CSIR Part Code","Product technical specifications ","Etimated  Quantity over 5 years","Unit Price per \n1 - 5 items \n(Excl. VAT)","Total Price (Excl VAT)","Unit Price per \n6- 10 items \n(Excl. VAT)","Total Price (Excl VAT)","Unit Price per 10 - 20 items\n(Excl. VAT) ","Total Price (Excl VAT)","Unit Price per above 20 items \n(Excl. VAT)","Total Price (Excl VAT)","Unit Price per \n1 - 5 items \n(Excl. VAT)","Total Price (Excl VAT)","Unit Price per \n6- 10 items \n(Excl. VAT)","Total Price (Excl VAT)","Unit Price per 10 - 20 items\n(Excl. VAT) ","Total Price (Excl VAT)","Unit Price per above 20 items \n(Excl. VAT)","Total Price (Excl VAT)","Unit Price per \n1 - 5 items \n(Excl. VAT)","Total Price (Excl VAT)","Unit Price per \n6- 10 items \n(Excl. VAT)","Total Price (Excl VAT)","Unit Price per 10 - 20 items\n(Excl. VAT) ","Total Price (Excl VAT)","Unit Price per above 20 items \n(Excl. VAT)","Total Price (Excl VAT)","Unit Price per \n1 - 5 items \n(Excl. VAT)","Total Price (Excl VAT)","Unit Price per \n6- 10 items \n(Excl. VAT)","Total Price (Excl VAT)","Unit Price per 10 - 20 items\n(Excl. VAT) ","Total Price (Excl VAT)","Unit Price per above 20 items \n(Excl. VAT)","Total Price (Excl VAT)","Unit Price per \n1 - 5 items \n(Excl. VAT)","Total Price (Excl VAT)","Unit Price per \n6- 10 items \n(Excl. VAT)","Total Price (Excl VAT)","Unit Price per 10 - 20 items\n(Excl. VAT) ","Total Price (Excl VAT)","Unit Price per above 20 items \n(Excl. VAT)","Total Price (Excl VAT)"]
["Air-con",600882,"Coupling 20mm PVC Blue - Material:Polyvinyl chloride (PVC)",25,null,{"$f":"D6*E6","v":0}]
["Air-Con",600100,"Acidic cleaner 5 Litre; Potassium or sodium hydroxide",35,null,{"$f":"D7*E7","v":0}]
["Air-Con",600146,"Capacitor 25MF - Aluminium",15,null,0]
["Air-Con",600147,"Capacitor 30MF - Aluminium",5,null,0]
["Air-Con",600151,"Capacitor 50MF - Aluminium",10,null,0]
["Air-Con",600240,"Fan Extracto G X9\" Window/Surface Wall Fan 220- 240V White",15,null,0]
["Air-con",600275,"Flux Silver Solder 30F potassium salts or fluorides and borates in a water base",85,null,0]
["Air-Con",600286,"Gas Bottle Disposable R134A - 13.6KG Disposable",10,null,0]
["Air-Con",600287,"Gas Bottle Disposable R22 Starke Refrigerant Gas Cylinder (13.6kg)",140,null,0]
["Air-Con",600288,"Gas Bottle Disposable R404A - 10.9KG Disposable",20,null,0]
["Air-Con",600289,"Gas Bottle Disposable R407C Disposable Cyl 13kg",20,null,0]
["Air-Con",600290,"Gas Bottle Disposable R408 - 13.6KG Disposable",10,null,0]
["Air-con",600291,"Gas Bottle Disposable R410A Disposable Cyl 11.3kg",90,null,0]
["Air-Con",600464,"Pencil dryer - Domestic Refrigeration Dryers 25 Gram Pencil Drier ",10,null,0]
["Air-Con",600493,"Pressure Switch_KP 15 Hp/ LP  Alarm - KP15 Pressure Switch HP/LP HP Manual Reset",5,null,0]
["Air-Con",600591,"Tape insulation cork 1 roll -1/8\" X2 X 30' - 2\" Prestite Tacky Tar-Cork Insulation Tape",5,null,0]
["Air-Con",600643,"Valve Schrader long - A/C R12 R134a Refrigeration Schrader Valve",15,null,0]
["Air-Con",600701,"York Box 4X2 Waterproof - Silicone Moulds.",130,null,0]
["Air-con",600702,"York Box 4X4 Waterproof - Silicone Moulds.",45,null,0]
[null,null,"Total Price Incl. VAT ( R)",null,null,{"$f":"SUM(F6:F24)","v":0},null,{"$f":"SUM(H6:H24)","v":0},null,{"$f":"SUM(J6:J24)","v":0},null,{"$f":"SUM(L6:L24)","v":0},null,{"$f":"SUM(N6:N24)","v":0},null,{"$f":"SUM(P6:P24)","v":0},null,{"$f":"SUM(R6:R24)","v":0},null,{"$f":"SUM(T6:T24)","v":0},null,{"$f":"SUM(V6:V24)","v":0},null,{"$f":"SUM(X6:X24)","v":0},null,{"$f":"SUM(Z6:Z24)","v":0},null,{"$f":"SUM(AB6:AB24)","v":0},null,{"$f":"SUM(AD6:AD24)","v":0},null,{"$f":"SUM(AF6:AF24)","v":0},null,{"$f":"SUM(AH6:AH24)","v":0},null,{"$f":"SUM(AJ6:AJ24)","v":0},null,{"$f":"SUM(AL6:AL24)","v":0},null,{"$f":"SUM(AN6:AN24)","v":0},null,{"$f":"SUM(AP6:AP24)","v":0},null,{"$f":"SUM(AR6:AR24)","v":0}]
[]
[]
["*Trade Discount % on published rates",null," "]
["*Settlement Discount %",null," "]
[]
["Definition of discounts"]
["A settlement discount is where a business offers the CSIR a discount when an invoice is paid on time or within 45 days from receipt of statement."]
["A trade discount is defined as a type of discount that is immediately deducted from the retail or proposal price of an item. "]
[]
[null,null,"Bidder must specify lead time in days from placing of a purchase order"]

{"sheet":"Chemical Spares","index":2,"n_rows":21,"n_cols":52,"rows_kept":21,"merged":[[0,0,0,3],[1,0,1,3],[2,0,2,1],[3,4,3,11],[3,12,3,19],[3,20,3,27],[3,28,3,35],[3,36,3,43],[3,44,3,51],[13,0,13,1],[14,0,14,1],[17,0,17,3],[18,0,18,3]]}
["Supply and delivery of Various Spares on an “as and when” required basis for five (5) years.  "]
["RFP: 0000/00/00/2024"]
["Bidder's Name",null,{"$f":"'Cover Page'!D21","v":0}]
[{"$nulls":4},"Year 1 ",{"$nulls":7},"Year 2",{"$nulls":7},"Year 3",{"$nulls":7},"Year 4",{"$nulls":7},"Year 5",{"$nulls":7},"Year 5"]
["Category","CSIR Part Code","Product technical specifications ","Etimated  Quantity over 5 years","Unit Price per \n1 - 5 items \n(Excl. VAT)","Total Price (Excl VAT)","Unit Price per \n6- 10 items \n(Excl. VAT)","Total Price (Excl VAT)","Unit Price per 10 - 20 items\n(Excl. VAT) ","Total Price (Excl VAT)","Unit Price per above 20 items \n(Excl. VAT)","Total Price (Excl VAT)","Unit Price per \n1 - 5 items \n(Excl. VAT)","Total Price (Excl VAT)","Unit Price per \n6- 10 items \n(Excl. VAT)","Total Price (Excl VAT)","Unit Price per 10 - 20 items\n(Excl. VAT) ","Total Price (Excl VAT)","Unit Price per above 20 items \n(Excl. VAT)","Total Price (Excl VAT)","Unit Price per \n1 - 5 items \n(Excl. VAT)","Total Price (Excl VAT)","Unit Price per \n6- 10 items \n(Excl. VAT)","Total Price (Excl VAT)","Unit Price per 10 - 20 items\n(Excl. VAT) ","Total Price (Excl VAT)","Unit Price per above 20 items \n(Excl. VAT)","Total Price (Excl VAT)","Unit Price per \n1 - 5 items \n(Excl. VAT)","Total Price (Excl VAT)","Unit Price per \n6- 10 items \n(Excl. VAT)","Total Price (Excl VAT)","Unit Price per 10 - 20 items\n(Excl. VAT) ","Total Price (Excl VAT)","Unit Price per above 20 items \n(Excl. VAT)","Total Price (Excl VAT)","Unit Price per \n1 - 5 items \n(Excl. VAT)","Total Price (Excl VAT)","Unit Price per \n6- 10 items \n(Excl. VAT)","Total Price (Excl VAT)","Unit Price per 10 - 20 items\n(Excl. VAT) ","Total Price (Excl VAT)","Unit Price per above 20 items \n(Excl. VAT)","Total Price (Excl VAT)","Unit Price per \n1 - 5 items \n(Excl. VAT)","Total Price (Excl VAT)","Unit Price per \n6- 10 items \n(Excl. VAT)","Total Price (Excl VAT)","Unit Price per 10 - 20 items\n(Excl. VAT) ","Total Price (Excl VAT)","Unit Price per above 20 items \n(Excl. VAT)","Total Price (Excl VAT)"]
["Chemical","600195","Degreaser Engine wash 5L heavy-duty cleaner that removes dirt, grease",100,null,{"$f":"E6*D6","v":0}]
["Chemical","600339","Hand Cleaner 5 Litre - HANDCLEANER MTS WITH GRIT 5KG",10,null,{"$f":"E7*D7","v":0}]
["Chemical","600443","Paint sprayon electric orange 250MM - Fast Drying Spray Paint Electric Orange 250ml ",10,null,0]
["Chemical","600565","Paint Sprayon Grey 250MM - Fast Drying Spray Paint Electric Grey 250ml ",35,null,0]
["Chemical","600526","Shampoo car 500ML - pH neutral vehicle shampoo",5,null,0]
[null,null,"Total Price Incl. VAT ( R)",null,null,{"$f":"SUM(F6:F10)","v":0},null,{"$f":"SUM(H6:H10)","v":0},null,{"$f":"SUM(J6:J10)","v":0},null,{"$f":"SUM(L6:L10)","v":0},null,{"$f":"SUM(N6:N10)","v":0},null,{"$f":"SUM(P6:P10)","v":0},null,{"$f":"SUM(R6:R10)","v":0},null,{"$f":"SUM(T6:T10)","v":0},null,{"$f":"SUM(V6:V10)","v":0},null,{"$f":"SUM(X6:X10)","v":0},null,{"$f":"SUM(Z6:Z10)","v":0},null,{"$f":"SUM(AB6:AB10)","v":0},null,{"$f":"SUM(AD6:AD10)","v":0},null,{"$f":"SUM(AF6:AF10)","v":0},null,{"$f":"SUM(AH6:AH10)","v":0},null,{"$f":"SUM(AJ6:AJ10)","v":0},null,{"$f":"SUM(AL6:AL10)","v":0},null,{"$f":"SUM(AN6:AN10)","v":0},null,{"$f":"SUM(AP6:AP10)","v":0},null,{"$f":"SUM(AR6:AR10)","v":0},null,{"$f":"SUM(AT6:AT10)","v":0},null,{"$f":"SUM(AV6:AV10)","v":0},null,{"$f":"SUM(AX6:AX10)","v":0},null,{"$f":"SUM(AZ6:AZ10)","v":0}]
[]
[]
["*Trade Discount % on published rates",null," "]
["*Settlement Discount %",null," "]
[]
["Definition of discounts"]
["A settlement discount is where a business offers the CSIR a discount when an invoice is paid on time or within 45 days from receipt of statement."]
["A trade discount is defined as a type of discount that is immediately deducted from the retail or proposal price of an item. "]
[]
[null,null,"Bidder must specify lead time in days from placing of a purchase order"]

{"sheet":"Electrical Spares","index":3,"n_rows":134,"n_cols":44,"rows_kept":134,"merged":[[0,0,0,3],[1,0,1,3],[2,0,2,1],[3,4,3,11],[3,12,3,19],[3,20,3,27],[3,28,3,35],[3,36,3,43],[126,0,126,1],[127,0,127,1],[130,0,130,3],[131,0,131,3]]}
["Supply and delivery of Various Spares on an “as and when” required basis for five (5) years.  "]
["RFP: 0000/00/00/2024"]
["Bidder's Name",null,{"$f":"'Cover Page'!D21","v":0}]
[{"$nulls":4},"Year 1 ",{"$nulls":7},"Year 2",{"$nulls":7},"Year 3",{"$nulls":7},"Year 4",{"$nulls":7},"Year 5"]
["Category","CSIR Part Code","Product technical specifications ","Etimated  Quantity over 5 years","Unit Price per \n1 - 5 items \n(Excl. VAT)","Total Price (Excl VAT)","Unit Price per \n6- 10 items \n(Excl. VAT)","Total Price (Excl VAT)","Unit Price per 10 - 20 items\n(Excl. VAT) ","Total Price (Excl VAT)","Unit Price per above 20 items \n(Excl. VAT)","Total Price (Excl VAT)","Unit Price per \n1 - 5 items \n(Excl. VAT)","Total Price (Excl VAT)","Unit Price per \n6- 10 items \n(Excl. VAT)","Total Price (Excl VAT)","Unit Price per 10 - 20 items\n(Excl. VAT) ","Total Price (Excl VAT)","Unit Price per above 20 items \n(Excl. VAT)","Total Price (Excl VAT)","Unit Price per \n1 - 5 items \n(Excl. VAT)","Total Price (Excl VAT)","Unit Price per \n6- 10 items \n(Excl. VAT)","Total Price (Excl VAT)","Unit Price per 10 - 20 items\n(Excl. VAT) ","Total Price (Excl VAT)","Unit Price per above 20 items \n(Excl. VAT)","Total Price (Excl VAT)","Unit Price per \n1 - 5 items \n(Excl. VAT)","Total Price (Excl VAT)","Unit Price per \n6- 10 items \n(Excl. VAT)","Total Price (Excl VAT)","Unit Price per 10 - 20 items\n(Excl. VAT) ","Total Price (Excl VAT)","Unit Price per above 20 items \n(Excl. VAT)","Total Price (Excl VAT)","Unit Price per \n1 - 5 items \n(Excl. VAT)","Total Price (Excl VAT)","Unit Price per \n6- 10 items \n(Excl. VAT)","Total Price (Excl VAT)","Unit Price per 10 - 20 items\n(Excl. VAT) ","Total Price (Excl VAT)","Unit Price per above 20 items \n(Excl. VAT)","Total Price (Excl VAT)"]
["Electrical","600827","Circuit breaker 5 AMP single phase QA-1 1 POLE 3KA 5AMP CIRCUIT BREAKER",10,null,{"$f":"D6*E6","v":0}]
["Electrical","600757","38mm Top Toilet Flusher Double, dual flush toilets with a 38mm hole in the cistern lid",10,null,{"$f":"D7*E7","v":0}]
["Electrical","600117","Battery AA - Alkaline Zinc-manganese Dioxide Cell · Battery voltage: 1.5Vh",250,null,0]
["Electrical","600118","Battery AAA - Alkaline Zinc-manganese Dioxide Cell · Battery voltage: 1.5Vh",460,null,0]
["Electrical","600119","Battery DD Alkaline Batteries, 1.5V LR20 MN1300",20,null,0]
["Electrical","600120","Battery Rechargeable NIMH9V 2509V 250mah NiMH Rechargeable. H 48 mm × L 25 mm × W 15",100,null,0]
["Electrical","600766","Butterfly M6  Normal Galvanised",130,null,0]
["Electrical","600138","Cable Surfix 1.5MM  2XE /1M - SABS Approved",2320,null,0]
["Electrical","600139","Cable Surfix 2.5MM 2XE/M - SABS Approved",9155,null,0]
["Electrical","600140","Cable Surfix 2.5MM 4XE /M - SABS Approved",1250,null,0]
["Electrical","600141","Cable Surfix 4mm 2XE - SABS Approved",525,null,0]
["Electrical","600142","Cable Surfix 4mm 4XE/M - SABS Approved",825,null,0]
["Electrical","600786","CBI adapter plate - Steel Adapter plate for DB Boards",60,null,0]
["Electrical","600154","Circuit breaker 10 AMP Single phase 3KA CBI, QA-1 1 POLE 3KA 10AMP CIRCUIT BREAKER",50,null,0]
["Electrical","600155","Circuit breaker 20 AMP Single  phase 3KA CBI, QA-1 1 POLE 3KA 20AMP CIRCUIT BREAKER. ",290,null,0]
["Electrical","600156","Circuit breaker 30 AMP Single phase 3KA CBI,  QA-1 1 POLE 3KA 30AMP CIRCUIT BREAKER",55,null,0]
["Electrical","600204","Earth leakage 63A with overload 3KA Single Phase - QF17ASingle Phase with Overload ProtectionDual Mount",100,null,0]
["Electrical","600237","Extension box 4X2 Closed White - Steel white coated",215,null,0]
["Electrical","600238","Extension Box 4X4 Closed White - Steel white coated",440,null,0]
["Electrical","600239","Extension Box PVC 4X4 Closed White - PVC (Polyvinyl Chloride)",85,null,0]
["Electrical","600241","Ferrules Wire 10mm - Aluminium Stainless Steel Tinned Copper.",100,null,0]
["Electrical","600242","Ferrules Wire 16mm - Aluminium Stainless Steel Tinned Copper.",70,null,0]
["Electrical","600243","Ferrules Wire 4mm - Aluminium Stainless Steel Tinned Copper.",2650,null,0]
["Electrical","600244","Ferrules Wire 6mm - Aluminium Stainless Steel Tinned Copper.",325,null,0]
["Electrical","600266","Fitting centurion Slimline Bulkhead 2D 16Watts - Suitable for compact fluorescent lamps E27, 2 x PL9 and 16watt 2D",15,null,0]
["Electrical","600267","Fitting downlight tilt with twist lock - Downlight Fitting Tilt Twistlock 80mm Steel White",45,null,0]
["Electrical","600768","Floodlight 150watt, 20-240 150W COOL WHITE LED ALUM. FLOOD LIGHT IP65",100,null,0]
["Electrical","600270","Fluorescent tube 16W 2D SQUARE 2 Pin - Fluorescent Lamp 2D Square 16W/835 2-Pin Gr8 Cool White",90,null,0]
["Electrical","600271","Fluorescent tube 16W 2D SQUARE 4 Pin - 2D 16 Watt 4 Pin Fluorescent Lamp Features Energy Saving",10,null,0]
["Electrical","600336","Grease Di- Electric NSF1 (284g) CRC Di-Electric Grease Food Grade 284g (3082",105,null,0]
["Electrical","600357","Insulation Tape Black 0.2mm X 18mmX 20mm - PVC Fire retardant ",185,null,0]
["Electrical","600358","Insulation Tape Blue 0.2mm X 18mmX 20mm - PVC Fire retardant  ",85,null,0]
["Electrical","600359","Insulation Tape Red 0.2mm X 18mmX 20mm - PVC Fire retardant ",130,null,0]
["Electrical","600360","Insulation Tape White 0.2mm X 18mmX 20mm - PVC Fire retardant ",110,null,0]
["Electrical","600841","Isolator 60A 100X100mm Universal Yoke (must be approved for sale by the South African Bureau of Standards)",5,null,0]
["Electrical","600361","Isolator 60A Triple Pole 100X50mm crabtree (must be approved for sale by the South African Bureau of Standards)",85,null,0]
["Electrical","600363","Isolator stove ISO Double Pole 30A 100X50mm WHT Cr (must be approved for sale by the South African Bureau of Standards)",265,null,0]
["Electrical","600364","Isolator Triple Pole 60A  4X4mm Plastic White (must be approved for sale by the South African Bureau of Standards)",5,null,0]
["Electrical","600300","Light 11/840 Dulux Sta 220-240V cool WHT  E27 600, lifetime of >8,000 hours, this energy-saving light bulb Cool white",965,null,0]
["Electrical","600808","Light 13W/840 G24q-1 4 pin, Life Time (h):. 20000 ; Dimmable:.Cool white",430,null,0]
["Electrical","600301","Light 14/840 Dulux Star 220-240V cool WHT B22d 600, lifetime of >8,000 hours, this energy-saving light bulb Cool white",775,null,0]
["Electrical","600302","Light 26w/840 Dulux G24D-3 2 pin, Average lifespan · 8000 hours. ; Light colour Cool white",540,null,0]
["Electrical","600305","Light 85W E40 Spiral,  E40 · Daylight 865 · 6000 Hours",115,null,0]
["Electrical","600307","Light Bulkhead 2XPL9 Clear; 9W Colour: Cool White Lamp Life Hours: 10000",425,null,0]
["Electrical","600315","Light dimmable LED MR16 12V 6.5W 6500k 60 Deg; MR16 7.5W/865 GU5.3 Dimmable Day Light ; LED · 6500K · 720lm ",575,null,0]
["Electrical","600310","Light GY22TG-20W cool white LED Flood- Led Flood Light Cool White 20W 220V. Lumen 1500 lm ; Wattage 20W ; Body Material Aluminium ",75,null,0]
["Electrical","600805","Light LED 6W E14 - 6W LED (240lm), AC100-240VAC, 160° Beam angle, COOL WHITE (±6000K )",50,null,0]
["Electrical","600311","Light LED Candle Non dimmable 4W E14; LAMP TYPE: LED FLAME CANDLE; WATTAGE: 4W; VOLTAGE: 220 -240V ",20,null,0]
["Electrical","600312","Light LED Open Channel 1200mm DOUBLE 4 FT - Open channel Empty Body LED Fitting. 4FT 1200mm. Double fitting",140,null,0]
["Electrical","600313","Light LED Open Channel 1500mm DOUBLE 5 FT - Open channel Empty Body LED Fitting. 5FT 1200mm. Double fitting",225,null,0]
["Electrical","600809","Light LED Tube 9w/900L 2FT - 230VAC 9W COOL WHITE, FROSTED, 550mm (2Ft) LED T8 TUBE",1535,null,0]
["Electrical","600314","Light non dimmable LED GU10 3W 6500k  110 Deg 450 (GU10 LED Reflector Lamp 4.3 W(50W), 4000K, Cool White)",285,null,0]
["Electrical","600319","Light pin Dulux  D 18w/840  G24D-2 2 (12000 hours average lifetime. Wattage 18w. Pins 2 pins)",550,null,0]
["Electrical","600373","Light Switch 1 way 2 Lever Crabtree (must be approved for sale by the South African Bureau of Standards)",25,null,0]
["Electrical","600321","Tube 549mm 14W T5 840 Cool White. Light Color: 4000 K ; lumens: 1200.",230,null,0]
["Electrical","600418","Lugs wire 4mm X 6mm - (for use in a heavy duty electrical power or grounding application)",85,null,0]
["Electrical","600779","M8 GALV NUT PKT/100 - Galvanised",60,null,0]
["Electrical","600421","Masking Tape 18mm X 40m (Tough and stretchable plastic)",60,null,0]
["Electrical","600807","Motion Sensor PIR32Infrared Motion Sensor 360deg Pir32",10,null,0]
["Electrical","600806","Motion Sensor PIR361100W 360° Ceiling Mount Eco-Friendly Motion Sensor PIRInfrared Motion Sensor",35,null,0]
["Electrical","600434","Osram L30W/640 Cool WhiteT8 L 30W/640 G13 Cool White Non-Dimmable",40,null,0]
["Electrical","600438","Osram ST8V-1.2m-18W-840-EM 16W G13 A+ Cool white1500 life hours",8845,null,0]
["Electrical","600439","Osram ST8V-1.5m-20W-840-EM 20W G13 A+ Cool white1500 life hours",3635,null,0]
["Electrical","600468","Pipe conduit PVC 20mmPVC (Polyvinyl Chloride)",30,null,0]
["Electrical","600475","Plug crabtree double socket 6881/001 16A 4X4approved for sale by the South African Bureau of Standards",1122.15,null,0]
["Electrical","600476","Plug Crabtree single socket 6861 16A 4X4approved for sale by the South African Bureau of Standards",90,null,{"$f":"D71*E71","v":0}]
["Electrical","600477","Plug double switched socket D 4X4mm 16A Red CBIapproved for sale by the South African Bureau of Standards",25,null,0]
["Electrical","600478","Plug Sockets single  16A 4X4  plastic whiteapproved for sale by the South African Bureau of Standards",10,null,0]
["Electrical","600479","Plug top dedicated red 16 AMP PVC (must be approved for sale by the South African Bureau of Standards)",25,null,0]
["Electrical","600480","Plug top Normal black 16 AMP PVC (must be approved for sale by the South African Bureau of Standards)",165,null,0]
["Electrical","600495","PVC Gland NO 0 - PVC (Polyvinyl Chloride)",3145,null,0]
["Electrical","600496","PVC round box 1 way  20mm - PVC (Polyvinyl Chloride)",230,null,0]
["Electrical","600497","PVC round box 2 way 20mm - PVC (Polyvinyl Chloride)",5,null,0]
["Electrical","600782","PVC round box 3 way 20mm - PVC (Polyvinyl Chloride)",25,null,0]
["Electrical","600498","PVC Trunking 16X16- 2M - PVC (Polyvinyl Chloride)",675,null,0]
["Electrical","600499","PVC trunking 25X16- 3M - PVC (Polyvinyl Chloride)",195,null,0]
["Electrical","600500","PVC trunking 40X40 - 3M - PVC (Polyvinyl Chloride)",20,null,0]
["Electrical","600769","Round Box PVC cover - PVC (Polyvinyl Chloride)",300,null,0]
["Electrical","600767","Spring washer M8 - DIN 127 B, ZINC",50,null,0]
["Electrical","600775","Steel coupling 20mm (Solid 20mm Galvanized Steel 76-201-101)",20,null,0]
["Electrical","600776","Steel pipe 20mm x 1.5mm Mild Steel (ERW) Tube - 250mm Long",75,null,0]
["Electrical","600774","Steel saddles 20mmMaterial: Steel; Diameter: 20mm; Saddles",455,null,0]
["Electrical","600773","Steel saddles 25mmMaterial: Steel; Diameter: 25mm; Saddles",155,null,0]
["Electrical","600576","Switch 1 lever double pole industrial crabtree (must be approved for sale by the South African Bureau of Standards)",55,null,0]
["Electrical","600577","Switch 20A 1Lever  one way classic Crabtree (must be approved for sale by the South African Bureau of Standards)",160,null,0]
["Electrical","600578","Switch cover Plate STL 1 lever switch 4x2mm WHT (must be approved for sale by the South African Bureau of Standards)",135,null,0]
["Electrical","600579","Switch cover plate STL 16A Single socket 4X4 WHT (must be approved for sale by the South African Bureau of Standards)",270,null,0]
["Electrical","600581","Switch cover plate STL Stove ISO 2X4mm WHT (must be approved for sale by the South African Bureau of Standards)",255,null,0]
["Electrical","600582","Switch Day/Night LS-20C 15A Day-Night Switch. 230V 15A",90,null,0]
["Electrical","600585","Switch Pull 1 way  10 AMP; X Rated 1 Way White Ceiling Pull Cord Light Switch",135,null,0]
["Electrical","600616","Timer programmable 24H Touch screen TRDM; Graphical display on home screen of 24h program schedule ",40,null,0]
["Electrical","600770","Tork craft Hole Saw HSS 20MM; bi-metal and tungsten carbide",50,null,0]
["Electrical","600771","Tork craft Hole Saw HSS 25MM; bi-metal and tungsten carbide",25,null,0]
["Electrical","600842","Transfomer 20W-50W; Class : 2 ; Height : 45mm ; Width : 110mm ; Depth : 25mm",30,null,0]
["Electrical","600675","Wire GP house 1.5mm Black - SABS Approved",50,null,0]
["Electrical","600676","Wire GP house 1.5mm Earth Green/ Yellow - SABS Approved",100,null,0]
["Electrical","600678","Wire GP house 10mm Black - SABS Approved",110,null,0]
["Electrical","600679","Wire GP house 10mm Blue - SABS Approved",155,null,0]
["Electrical","600680","Wire GP house 10mm Earth Green / yellow - SABS Approved",450,null,0]
["Electrical","600681","Wire GP house 10mm Red - SABS Approved",55,null,0]
["Electrical","600682","Wire GP house 10mm White - SABS Approved",130,null,0]
["Electrical","600683","Wire GP house 2.5mm Black - SABS Approved",930,null,0]
["Electrical","600811","Wire GP house 2.5mm Blue - SABS Approved",500,null,0]
["Electrical","600684","Wire GP house 2.5mm Earth Green / Yellow - SABS Approved",1000,null,0]
["Electrical","600685","Wire GP house 2.5mm Red - SABS Approved",930,null,0]
["Electrical","600686","Wire GP house 4mm Black - SABS Approved",100,null,0]
["Electrical","600687","Wire GP house 4mm Blue - SABS Approved",100,null,0]
["Electrical","600688","Wire GP house 4mm Erth Green / Yellow - SABS Approved",600,null,0]
["Electrical","600689","Wire GP house 4mm Red - SABS Approved",115,null,0]
["Electrical","600690","Wire GP house 4mm White - SABS Approved",100,null,0]
["Electrical","600691","Wire GP house 6mm Black - SABS Approved",520,null,0]
["Electrical","600692","Wire GP house 6mm Blue - SABS Approved",10,null,0]
["Electrical","600693","Wire GP house 6mm Earth Green / Yellow - SABS Approved",115,null,0]
["Electrical","600694","Wire GP house 6mm Red - SABS Approved",410,null,0]
["Electrical","600695","Wire GP house 6mm White - SABS Approved",10,null,0]
["Electrical","600697","Wire Silicone 4mm Blue - SABS Approved",30,null,0]
["Electrical","600698","Wire Silicone 4mm Red - SABS Approved",30,null,0]
["Electrical","600699","Wire Silicone 4mm White - SABS Approved",10,null,0]
[null,null,"Total Price Incl. VAT ( R)",null,null,{"$f":"SUM(F6:F123)","v":0},null,{"$f":"SUM(H6:H123)","v":0},null,{"$f":"SUM(J6:J123)","v":0},null,{"$f":"SUM(L6:L123)","v":0},null,{"$f":"SUM(N6:N123)","v":0},null,{"$f":"SUM(P6:P123)","v":0},null,{"$f":"SUM(R6:R123)","v":0},null,{"$f":"SUM(T6:T123)","v":0},null,{"$f":"SUM(V6:V123)","v":0},null,{"$f":"SUM(X6:X123)","v":0},null,{"$f":"SUM(Z6:Z123)","v":0},null,{"$f":"SUM(AB6:AB123)","v":0},null,{"$f":"SUM(AD6:AD123)","v":0},null,{"$f":"SUM(AF6:AF123)","v":0},null,{"$f":"SUM(AH6:AH123)","v":0},null,{"$f":"SUM(AJ6:AJ123)","v":0},null,{"$f":"SUM(AL6:AL123)","v":0},null,{"$f":"SUM(AN6:AN123)","v":0},null,{"$f":"SUM(AP6:AP123)","v":0},null,{"$f":"SUM(AR6:AR123)","v":0}]
[]
[]
["*Trade Discount % on published rates",null," "]
["*Settlement Discount %",null," "]
[]
["Definition of discounts"]
["A settlement discount is where a business offers the CSIR a discount when an invoice is paid on time or within 45 days from receipt of statement."]
["A trade discount is defined as a type of discount that is immediately deducted from the retail or proposal price of an item. "]
[]
[null,null,"Bidder must specify lead time in days from placing of a purchase order"]

{"sheet":"Fire Systems","index":4,"n_rows":19,"n_cols":52,"rows_kept":19,"merged":[[0,0,0,2],[1,0,1,2],[2,0,2,1],[3,4,3,11],[3,12,3,19],[3,20,3,27],[3,28,3,35],[3,36,3,43],[3,44,3,51],[11,0,11,1],[12,0,12,1],[15,0,15,3],[16,0,16,3]]}
["Supply and delivery of Various Spares on an “as and when” required basis for five (5) years.  "]
["RFP: 0000/00/00/2024"]
["Bidder's Name",null,{"$f":"'Cover Page'!D21","v":0}]
[{"$nulls":4},"Year 1 ",{"$nulls":7},"Year 2",{"$nulls":7},"Year 3",{"$nulls":7},"Year 4",{"$nulls":7},"Year 5",{"$nulls":7},"Year 5"]
["Category","CSIR Part Code","Product technical specifications ","Etimated  Quantity over 5 years","Unit Price per \n1 - 5 items \n(Excl. VAT)","Total Price (Excl VAT)","Unit Price per \n6- 10 items \n(Excl. VAT)","Total Price (Excl VAT)","Unit Price per 10 - 20 items\n(Excl. VAT) ","Total Price (Excl VAT)","Unit Price per above 20 items \n(Excl. VAT)","Total Price (Excl VAT)","Unit Price per \n1 - 5 items \n(Excl. VAT)","Total Price (Excl VAT)","Unit Price per \n6- 10 items \n(Excl. VAT)","Total Price (Excl VAT)","Unit Price per 10 - 20 items\n(Excl. VAT) ","Total Price (Excl VAT)","Unit Price per above 20 items \n(Excl. VAT)","Total Price (Excl VAT)","Unit Price per \n1 - 5 items \n(Excl. VAT)","Total Price (Excl VAT)","Unit Price per \n6- 10 items \n(Excl. VAT)","Total Price (Excl VAT)","Unit Price per 10 - 20 items\n(Excl. VAT) ","Total Price (Excl VAT)","Unit Price per above 20 items \n(Excl. VAT)","Total Price (Excl VAT)","Unit Price per \n1 - 5 items \n(Excl. VAT)","Total Price (Excl VAT)","Unit Price per \n6- 10 items \n(Excl. VAT)","Total Price (Excl VAT)","Unit Price per 10 - 20 items\n(Excl. VAT) ","Total Price (Excl VAT)","Unit Price per above 20 items \n(Excl. VAT)","Total Price (Excl VAT)","Unit Price per \n1 - 5 items \n(Excl. VAT)","Total Price (Excl VAT)","Unit Price per \n6- 10 items \n(Excl. VAT)","Total Price (Excl VAT)","Unit Price per 10 - 20 items\n(Excl. VAT) ","Total Price (Excl VAT)","Unit Price per above 20 items \n(Excl. VAT)","Total Price (Excl VAT)","Unit Price per \n1 - 5 items \n(Excl. VAT)","Total Price (Excl VAT)","Unit Price per \n6- 10 items \n(Excl. VAT)","Total Price (Excl VAT)","Unit Price per 10 - 20 items\n(Excl. VAT) ","Total Price (Excl VAT)","Unit Price per above 20 items \n(Excl. VAT)","Total Price (Excl VAT)"]
["Fire Systems","600750","Battery 12 V 7.2 AH12 (Volt 7.2Amp rechargeable backup battery)",5,null,{"$f":"D6*E6","v":0}]
["Fire Systems","600747","XP95 Optical Smoke Detector (XP95 Fixed Temperature Heat Detector; Class C/S (90°C))",45,null,{"$f":"D7*E7","v":0}]
[null,null,"Total Price Incl. VAT ( R)",null,null,{"$f":"SUM(F6:F7)","v":0},null,{"$f":"SUM(H6:H7)","v":0},null,{"$f":"SUM(J6:J7)","v":0},null,{"$f":"SUM(L6:L7)","v":0},null,{"$f":"SUM(N6:N7)","v":0},null,{"$f":"SUM(P6:P7)","v":0},null,{"$f":"SUM(R6:R7)","v":0},null,{"$f":"SUM(T6:T7)","v":0},null,{"$f":"SUM(V6:V7)","v":0},null,{"$f":"SUM(X6:X7)","v":0},null,{"$f":"SUM(Z6:Z7)","v":0},null,{"$f":"SUM(AB6:AB7)","v":0},null,{"$f":"SUM(AD6:AD7)","v":0},null,{"$f":"SUM(AF6:AF7)","v":0},null,{"$f":"SUM(AH6:AH7)","v":0},null,{"$f":"SUM(AJ6:AJ7)","v":0},null,{"$f":"SUM(AL6:AL7)","v":0},null,{"$f":"SUM(AN6:AN7)","v":0},null,{"$f":"SUM(AP6:AP7)","v":0},null,{"$f":"SUM(AR6:AR7)","v":0},null,{"$f":"SUM(AT6:AT7)","v":0},null,{"$f":"SUM(AV6:AV7)","v":0},null,{"$f":"SUM(AX6:AX7)","v":0},null,{"$f":"SUM(AZ6:AZ7)","v":0}]
[]
[]
[]
["*Trade Discount % on published rates",null," "]
["*Settlement Discount %",null," "]
[]
["Definition of discounts"]
["A settlement discount is where a business offers the CSIR a discount when an invoice is paid on time or within 45 days from receipt of statement."]
["A trade discount is defined as a type of discount that is immediately deducted from the retail or proposal price of an item. "]
[]
[null,null,"Bidder must specify lead time in days from placing of a purchase order"]

{"sheet":"General Spares","index":5,"n_rows":20,"n_cols":52,"rows_kept":20,"merged":[[0,0,0,2],[1,0,1,2],[2,0,2,1],[3,4,3,11],[3,12,3,19],[3,20,3,27],[3,28,3,35],[3,36,3,43],[3,44,3,51],[11,0,11,1],[12,0,12,1],[15,0,15,3],[16,0,16,3]]}
["Supply and delivery of Various Spares on an “as and when” required basis for five (5) years.  "]
["RFP: 0000/00/00/2024"]
["Bidder's Name",null,{"$f":"'Cover Page'!D21","v":0}]
[{"$nulls":4},"Year 1 ",{"$nulls":7},"Year 2",{"$nulls":7},"Year 3",{"$nulls":7},"Year 4",{"$nulls":7},"Year 5",{"$nulls":7},"Year 5"]
["Category","CSIR Part Code","Product technical specifications ","Etimated  Quantity over 5 years","Unit Price per \n1 - 5 items \n(Excl. VAT)","Total Price (Excl VAT)","Unit Price per \n6- 10 items \n(Excl. VAT)","Total Price (Excl VAT)","Unit Price per 10 - 20 items\n(Excl. VAT) ","Total Price (Excl VAT)","Unit Price per above 20 items \n(Excl. VAT)","Total Price (Excl VAT)","Unit Price per \n1 - 5 items \n(Excl. VAT)","Total Price (Excl VAT)","Unit Price per \n6- 10 items \n(Excl. VAT)","Total Price (Excl VAT)","Unit Price per 10 - 20 items\n(Excl. VAT) ","Total Price (Excl VAT)","Unit Price per above 20 items \n(Excl. VAT)","Total Price (Excl VAT)","Unit Price per \n1 - 5 items \n(Excl. VAT)","Total Price (Excl VAT)","Unit Price per \n6- 10 items \n(Excl. VAT)","Total Price (Excl VAT)","Unit Price per 10 - 20 items\n(Excl. VAT) ","Total Price (Excl VAT)","Unit Price per above 20 items \n(Excl. VAT)","Total Price (Excl VAT)","Unit Price per \n1 - 5 items \n(Excl. VAT)","Total Price (Excl VAT)","Unit Price per \n6- 10 items \n(Excl. VAT)","Total Price (Excl VAT)","Unit Price per 10 - 20 items\n(Excl. VAT) ","Total Price (Excl VAT)","Unit Price per above 20 items \n(Excl. VAT)","Total Price (Excl VAT)","Unit Price per \n1 - 5 items \n(Excl. VAT)","Total Price (Excl VAT)","Unit Price per \n6- 10 items \n(Excl. VAT)","Total Price (Excl VAT)","Unit Price per 10 - 20 items\n(Excl. VAT) ","Total Price (Excl VAT)","Unit Price per above 20 items \n(Excl. VAT)","Total Price (Excl VAT)","Unit Price per \n1 - 5 items \n(Excl. VAT)","Total Price (Excl VAT)","Unit Price per \n6- 10 items \n(Excl. VAT)","Total Price (Excl VAT)","Unit Price per 10 - 20 items\n(Excl. VAT) ","Total Price (Excl VAT)","Unit Price per above 20 items \n(Excl. VAT)","Total Price (Excl VAT)"]
["General","600111","Bung for Flush pipe MK2 - Rubber Bung for Flush Pipe Connector.",15,null,{"$f":"D6*E6","v":0}]
["General","600822","Cleaning Rags 5kg - Cleaning Rags Wrapped (5kg) ",45,null,{"$f":"D7*E7","v":0}]
["General","600196","Degreaser heavy duty 5 litre - WATER BASED DEGREASER (HEAVY DUTY)",65,null,0]
[null,null,"Total Price Incl. VAT ( R)",null,null,{"$f":"SUM(F6:F8)","v":0},null,{"$f":"SUM(H6:H8)","v":0},null,{"$f":"SUM(J6:J8)","v":0},null,{"$f":"SUM(L6:L8)","v":0},null,{"$f":"SUM(N6:N8)","v":0},null,{"$f":"SUM(P6:P8)","v":0},null,{"$f":"SUM(R6:R8)","v":0},null,{"$f":"SUM(T6:T8)","v":0},null,{"$f":"SUM(V6:V8)","v":0},null,{"$f":"SUM(X6:X8)","v":0},null,{"$f":"SUM(Z6:Z8)","v":0},null,{"$f":"SUM(AB6:AB8)","v":0},null,{"$f":"SUM(AD6:AD8)","v":0},null,{"$f":"SUM(AF6:AF8)","v":0},null,{"$f":"SUM(AH6:AH8)","v":0},null,{"$f":"SUM(AJ6:AJ8)","v":0},null,{"$f":"SUM(AL6:AL8)","v":0},null,{"$f":"SUM(AN6:AN8)","v":0},null,{"$f":"SUM(AP6:AP8)","v":0},null,{"$f":"SUM(AR6:AR8)","v":0},null,{"$f":"SUM(AT6:AT8)","v":0},null,{"$f":"SUM(AV6:AV8)","v":0},null,{"$f":"SUM(AX6:AX8)","v":0},null,{"$f":"SUM(AZ6:AZ8)","v":0}]
[]
[]
["*Trade Discount % on published rates",null," "]
["*Settlement Discount %",null," "]
[]
["Definition of discounts"]
["A settlement discount is where a business offers the CSIR a discount when an invoice is paid on time or within 45 days from receipt of statement."]
["A trade discount is defined as a type of discount that is immediately deducted from the retail or proposal price of an item. "]
[]
[]
[null,null,"Bidder must specify lead time in days from placing of a purchase order"]

{"sheet":"Handyman Spares","index":6,"n_rows":83,"n_cols":44,"rows_kept":83,"merged":[[0,0,0,3],[1,0,1,3],[2,0,2,1],[3,4,3,11],[3,12,3,19],[3,20,3,27],[3,28,3,35],[3,36,3,43],[75,0,75,1],[76,0,76,1],[79,0,79,3],[80,0,80,3]]}
["Supply and delivery of Various Spares on an “as and when” required basis for five (5) years.  "]
["RFP: 0000/00/00/2024"]
["Bidder's Name",null,{"$f":"'Cover Page'!D21","v":0}]
[{"$nulls":4},"Year 1 ",{"$nulls":7},"Year 2",{"$nulls":7},"Year 3",{"$nulls":7},"Year 4",{"$nulls":7},"Year 5"]
["Category","CSIR Part Code","Product technical specifications ","Etimated  Quantity over 5 years","Unit Price per \n1 - 5 items \n(Excl. VAT)","Total Price (Excl VAT)","Unit Price per \n6- 10 items \n(Excl. VAT)","Total Price (Excl VAT)","Unit Price per 10 - 20 items\n(Excl. VAT) ","Total Price (Excl VAT)","Unit Price per above 20 items \n(Excl. VAT)","Total Price (Excl VAT)","Unit Price per \n1 - 5 items \n(Excl. VAT)","Total Price (Excl VAT)","Unit Price per \n6- 10 items \n(Excl. VAT)","Total Price (Excl VAT)","Unit Price per 10 - 20 items\n(Excl. VAT) ","Total Price (Excl VAT)","Unit Price per above 20 items \n(Excl. VAT)","Total Price (Excl VAT)","Unit Price per \n1 - 5 items \n(Excl. VAT)","Total Price (Excl VAT)","Unit Price per \n6- 10 items \n(Excl. VAT)","Total Price (Excl VAT)","Unit Price per 10 - 20 items\n(Excl. VAT) ","Total Price (Excl VAT)","Unit Price per above 20 items \n(Excl. VAT)","Total Price (Excl VAT)","Unit Price per \n1 - 5 items \n(Excl. VAT)","Total Price (Excl VAT)","Unit Price per \n6- 10 items \n(Excl. VAT)","Total Price (Excl VAT)","Unit Price per 10 - 20 items\n(Excl. VAT) ","Total Price (Excl VAT)","Unit Price per above 20 items \n(Excl. VAT)","Total Price (Excl VAT)","Unit Price per \n1 - 5 items \n(Excl. VAT)","Total Price (Excl VAT)","Unit Price per \n6- 10 items \n(Excl. VAT)","Total Price (Excl VAT)","Unit Price per 10 - 20 items\n(Excl. VAT) ","Total Price (Excl VAT)","Unit Price per above 20 items \n(Excl. VAT)","Total Price (Excl VAT)"]
["Handyman","600801","Adapter female 32mm - HDPE (High-Density Polyethylene)",15,null,{"$f":"E6*D6","v":0}]
["Handyman","600130","Brush paint size 12mm - Polyester brush for Wall and trim",35,null,{"$f":"E7*D7","v":0}]
["Handyman","600131","Brush paint size 25mm - Polyester brush for Wall and trim",80,null,0]
["Handyman","600132","Brush paint size 50mm - Polyester brush for Wall and trim",120,null,0]
["Handyman","600133","Brush paint size 75mm - Polyester brush for Wall and trim",130,null,0]
["Handyman","600197","Door closer QS700/1, EN1154 fire rated, size 2-3 with designer arm",40,null,0]
["Handyman","600851","Door name sliders - Aluminium",915,null,0]
["Handyman","600852","Door name sliders - Boardroom aluminium",100,null,0]
["Handyman","600198","Door stop 165mm foot action - Heavy duty ",135,null,0]
["Handyman","600260","Fischer Plug 5X36 100 Per Box (high-quality nylon plug and a zinc-plated nail screw)",1575,null,0]
["Handyman","600261","Fischer Plug 6X42mm 100/box (high-quality nylon plug and a zinc-plated nail screw)",12365,null,0]
["Handyman","600262","Fischer Plug 6X70mm (high-quality nylon plug and a zinc-plated nail screw)",200,null,0]
["Handyman","600263","Fischer Plug 8X60mm 100 Per box (high-quality nylon plug and a zinc-plated nail screw)",1735,null,0]
["HandyMan","600276","Foam filla spray 500ml - Power polyurethane foam ",15,null,0]
["Handyman","600278","Furniture dove blank on rose union AL6D66-13ASnFinish. Anodised Silver.",25,null,0]
["Handyman","600330","Glue contact genkem 500ml Litre (ADHESIVE GENKEM CLEAR 25ML HAN472)",115,null,0]
["Handyman","600331","Glue wood 500M (Lunique low VOC formula)",80,null,0]
["Handyman","600341","Handle aluminium black window Right (Aluminium Window Handle Virage Black)",15,null,{"$f":"E23*D23","v":0}]
["Handyman","600342","Handle door chrome C2692-13CH Oval Union (Gower Handle CZ682-13CH)",110,null,0]
["Handyman","600343","Handle door profile chromed unionBackplate size: 152 x 41; Centres: 57mm; Finish: Satin Chrome",30,null,0]
["Handyman","600351","Hinge aluminium fast fixed 100x75x3.5MM (Medium Duty Butt Hinge 100x75x3.5mm; Fixed Pin)",75,null,0]
["Handyman","600352","Hinge aluminium fast fixed black (Heavy Duty Fast Fix Hinge with face fix flanges)",60,null,0]
["Handyman","600353","Hinge But 100MM And screws Brass (BUTT HINGE 100M X 60MM, PAIR, SOLID BRASS)",50,null,0]
["Handyman","600376","Lock bol barrel 100MM - Chrome finished",20,null,0]
["Handyman","600377","Lock bolt barrel 150MM - Chrome finished",35,null,0]
["Handyman","600378","Lock bolt barrel 200MM - Chrome finished",5,null,0]
["Handyman","600381","Lock cam 16MM - Chrome finished",5,null,0]
["Handyman","600382","Lock cam 16mm Hook - Chrome finished",10,null,0]
["Handyman","600384","Lock cam 20MM - Chrome finished",25,null,0]
["Handyman","600385","Lock cam 20MM Hook - Chrome finished",25,null,0]
["Handyman","600386","Lock cam 25MM Hook - Chrome finished",130,null,0]
["Handyman","600388","Lock cylinder cupboard 50MM 5 pin - Brass finished",40,null,{"$f":"E37*D37","v":0}]
["Handyman","600389","Lock cylinder double oval Union (must meet EN 1303:2015)",710,null,0]
["Handyman","600391","Lock door mechanism 3 Lever (must meet EN 1303:2015)",100,null,0]
["Handyman","600392","Lock double euro profile cylinder 2X18SC (must meet EN 1303:2015)",390,null,0]
["Handyman","600798","Lock knob cylinder euro (must meet EN 1303:2015)",75,null,0]
["HandyMan","600397","Lock knob cylinder oval 2X13SC Union (must meet EN 1303:2015)",190,null,0]
["Handyman","600398","Lock latch + strike CT 1178 (must meet EN 1303:2015)",5,null,0]
["Handyman","600816","Lock Latch bolt (must meet EN 1303:2015)",10,null,0]
["Handyman","600400","Lock narrow stile aluminium Q35x85 Union (must meet EN 1303:2015)",5,null,0]
["Handyman","600401","Lock narrow stile mortice Q25x85 Union (must meet EN 1303:2015)",25,null,0]
["HandyMan","600402","Lock night latch 60mm (must meet EN 1303:2015)",15,null,0]
["Handyman","600403","Lock oval door mechanisim 8L/12241/78 SS Union  (must meet EN 1303:2015)",200,null,0]
["Handyman","600404","Lock pad Yale 40MM - Brass Padlock",70,null,0]
["Handyman","600406","Lock padlock 38MM triicircle (hardenned pad lock)",190,null,{"$f":"E50*D50","v":0}]
["Handyman","600408","Lock profile door mechanism Union (must meet EN 1303:2015)",80,null,0]
["Handyman","600409","Lock profile door mechanism Union (must meet EN 1303:2015)",40,null,0]
["Handyman","600411","Lock waldo hasp + staple brass 115MM - Brass ",40,null,0]
["Handyman","600871","Padlock 50mm - Brass Padlock",10,null,0]
["Handyman","600884","Padlock 60mm - Brass Padlock",35,null,0]
["HandyMan","600460","Pattex No more nail 250G synthetic rubber-based adhesive",100,null,0]
["Handyman","600481","Plugs drywall 30mm (Drywall Plug Nylon 1Fin 30mm)",740,null,0]
["Handyman","600482","Plugs drywall 40mm (Drywall Plug Nylon 1Fin 40mm)",930,null,0]
["Handyman","600490","Polyfilla 500G Calcium carbonate in a styrene-acrylate based polymer",70,null,0]
["Handyman","600799","Push Lock Chrome- Cabinet  Cupboard Push Lock Chrome Plated",25,null,0]
["Handyman","600494","Putty Standard 125 Gram (SURFACE PREPERATION:​​ dried teak putty)",5,null,0]
["Handyman","600506","Reflector Yellow 5X300C MFD1403 (M82) Marine Microprismatic Retroreflective Conspicuity Tape",5,null,{"$f":"E62*D62","v":0}]
["Handyman","600511","Roller paint 225mm (Mohair Roller 225mm)",65,null,0]
["Handyman","600547","Silicone Soudal Clear 280M - Lacetoxy cure silicon",130,null,0]
["Handyman","600548","Silicone Soudal White 280M - Lacetoxy cure silicon",120,null,0]
["Handyman","600588","Tape double sided 120 kg - Heavy duty double sided tape 3mm thick x 24mm wide",40,null,0]
["Handyman","600589","Tape duct 48MM X 25M   Black (PE Coated cloth as backing with rubber resin adhesive coated)",60,null,0]
["Handyman","600590","Tape duct 48MM X 25M Silver (PE Coated cloth as backing with rubber resin adhesive coated)",5,null,0]
["HandyMan","600592","Tape masking 48mmX40m (Thin saturated crepe paper backing)",65,null,0]
["Handyman","600593","Tape reflective barrier 70X500 Red/WhiteTough and stretchable plastic",15,null,0]
["Handyman","600594","Tape safety & floor marking 75X35 yellow blackPVC based floor demarcation tape",5,null,{"$f":"E71*D71","v":0}]
[null,null,"Total Price Incl. VAT ( R)",null,null,{"$f":"SUM(F6:F71)","v":0},null,{"$f":"SUM(H6:H71)","v":0},null,{"$f":"SUM(J6:J71)","v":0},null,{"$f":"SUM(L6:L71)","v":0},null,{"$f":"SUM(N6:N71)","v":0},null,{"$f":"SUM(P6:P71)","v":0},null,{"$f":"SUM(R6:R71)","v":0},null,{"$f":"SUM(T6:T71)","v":0},null,{"$f":"SUM(V6:V71)","v":0},null,{"$f":"SUM(X6:X71)","v":0},null,{"$f":"SUM(Z6:Z71)","v":0},null,{"$f":"SUM(AB6:AB71)","v":0},null,{"$f":"SUM(AD6:AD71)","v":0},null,{"$f":"SUM(AF6:AF71)","v":0},null,{"$f":"SUM(AH6:AH71)","v":0},null,{"$f":"SUM(AJ6:AJ71)","v":0},null,{"$f":"SUM(AL6:AL71)","v":0},null,{"$f":"SUM(AN6:AN71)","v":0},null,{"$f":"SUM(AP6:AP71)","v":0},null,{"$f":"SUM(AR6:AR71)","v":0}]
[]
[]
[]
["*Trade Discount % on published rates",null," "]
["*Settlement Discount %",null," "]
[]
["Definition of discounts"]
["A settlement discount is where a business offers the CSIR a discount when an invoice is paid on time or within 45 days from receipt of statement."]
["A trade discount is defined as a type of discount that is immediately deducted from the retail or proposal price of an item. "]
[]
[null,null,"Bidder must specify lead time in days from placing of a purchase order"]

{"sheet":"Mechanical Spares","index":7,"n_rows":41,"n_cols":44,"rows_kept":41,"merged":[[0,0,0,3],[1,0,1,3],[2,0,2,1],[3,4,3,11],[3,12,3,19],[3,20,3,27],[3,28,3,35],[3,36,3,43],[33,0,33,1],[34,0,34,1],[37,0,37,3],[38,0,38,3]]}
["Supply and delivery of Various Spares on an “as and when” required basis for five (5) years.  "]
["RFP: 0000/00/00/2024"]
["Bidder's Name",null,{"$f":"'Cover Page'!D21","v":0}]
[{"$nulls":4},"Year 1 ",{"$nulls":7},"Year 2",{"$nulls":7},"Year 3",{"$nulls":7},"Year 4",{"$nulls":7},"Year 5"]
["Category","CSIR Part Code","Product technical specifications ","Etimated  Quantity over 5 years","Unit Price per \n1 - 5 items \n(Excl. VAT)","Total Price (Excl VAT)","Unit Price per \n6- 10 items \n(Excl. VAT)","Total Price (Excl VAT)","Unit Price per 10 - 20 items\n(Excl. VAT) ","Total Price (Excl VAT)","Unit Price per above 20 items \n(Excl. VAT)","Total Price (Excl VAT)","Unit Price per \n1 - 5 items \n(Excl. VAT)","Total Price (Excl VAT)","Unit Price per \n6- 10 items \n(Excl. VAT)","Total Price (Excl VAT)","Unit Price per 10 - 20 items\n(Excl. VAT) ","Total Price (Excl VAT)","Unit Price per above 20 items \n(Excl. VAT)","Total Price (Excl VAT)","Unit Price per \n1 - 5 items \n(Excl. VAT)","Total Price (Excl VAT)","Unit Price per \n6- 10 items \n(Excl. VAT)","Total Price (Excl VAT)","Unit Price per 10 - 20 items\n(Excl. VAT) ","Total Price (Excl VAT)","Unit Price per above 20 items \n(Excl. VAT)","Total Price (Excl VAT)","Unit Price per \n1 - 5 items \n(Excl. VAT)","Total Price (Excl VAT)","Unit Price per \n6- 10 items \n(Excl. VAT)","Total Price (Excl VAT)","Unit Price per 10 - 20 items\n(Excl. VAT) ","Total Price (Excl VAT)","Unit Price per above 20 items \n(Excl. VAT)","Total Price (Excl VAT)","Unit Price per \n1 - 5 items \n(Excl. VAT)","Total Price (Excl VAT)","Unit Price per \n6- 10 items \n(Excl. VAT)","Total Price (Excl VAT)","Unit Price per 10 - 20 items\n(Excl. VAT) ","Total Price (Excl VAT)","Unit Price per above 20 items \n(Excl. VAT)","Total Price (Excl VAT)"]
["Mechanical","600110","Antifreeze & Summer Coolant Concentrate 1 Litre ",25,null,{"$f":"D6*E6","v":0}]
["Mechanical","600836","Ball bearing 6207-2RS Single Row Deep Groove Ball Bearing",15,null,{"$f":"D7*E7","v":0}]
["Mechanical","600129","Brake Fluide 500ML (Oil Grade. DOT-4)",5,null,0]
["Mechanical","600135","Bulbs automotive 12V Double 21/5w  P21/5W 24V 21/5W Bay15D",35,null,0]
["Mechanical","600257","Cable Tie 100mm x 2.5 Black - polyamides (Nylon 6/6)",10,null,0]
["Mechanical","600259","Cable Tie 150 x 3.6 Black - polyamides (Nylon 6/6)",30,null,0]
["Mechanical","600277","Cable Tie 200mm x 4.8 Black - polyamides (Nylon 6/6)",1040,null,0]
["Mechanical","600448","Cable Tie 400mm x 4.8 Black - polyamides (Nylon 6/6)",1030,null,0]
["Mechanical","600764","Eclipse Hacksaw Blades 24T carbon steel or high speed steel strip rolls. 24 Teeth",115,null,0]
["Mechanical","600236","Engine Oil - Pretrol 1 Litre (20w40 Specification)",180,null,0]
["Mechanical","600711","Multi-Purpose Q20 sprayon 400ml (lubricant",80,null,0]
["Mechanical","600445","Paint sprayon Silver 250MM (Fast Drying Spray Paint Electric Silver 250ml )",15,null,0]
["Mechanical","600446","Paint sprayon White 250MM (Fast Drying Spray Paint Electric White 250ml )",5,null,0]
["Mechanical","600488","Pneumatic trolley Wheel 200mm Rubber Wheel",505,null,0]
["Mechanical","600256","Rawl Bolt M10 (medium carbon or alloy steel)",500,null,{"$f":"D20*E20","v":0}]
["Mechanical","600125","Rawl Bolts M8 (medium carbon or alloy steel)",440,null,0]
["Mechanical","600508","Rods copper brazing 2mm x50mm (Copper Brazing Rods Square 2mm 94% Copper 6% Phosphor. Degussa)",135,null,0]
["Mechanical","600510","Rods welding 6013 2.5MM (5kg) carbonmanganese steels having a carbon equivalent below 0,28%.",10,null,0]
["Mechanical","600781","Thin cutting Disk 115 x 1.0 x 22 Industrial 2-1 Stainless & Carbon Steel) cutting discs",130,null,0]
["Mechanical","600638","Valve none return Inline compressed Air 25MM - Brass spring loaded non return valve 1\" female BSP threads ",10,null,0]
["Mechanical","600651","V-Belt VB13NX1000 (rubber, neoprene, and urethane synthetic material)",20,null,0]
["Mechanical","600662","Wheel trolley swivel brake bracket 100MM - CASTOR WHEEL GREY 100MM PL/BRAKE 50KGS ",15,null,0]
["Mechanical","600672","Wipers Size 16 - durable rubber",20,null,0]
["Mechanical","600674","Wipers Size 19 - durable rubber",25,null,0]
[null,null,"Total Price Incl. VAT ( R)",null,null,{"$f":"SUM(F6:F29)","v":0},null,{"$f":"SUM(H6:H29)","v":0},null,{"$f":"SUM(J6:J29)","v":0},null,{"$f":"SUM(L6:L29)","v":0},null,{"$f":"SUM(N6:N29)","v":0},null,{"$f":"SUM(P6:P29)","v":0},null,{"$f":"SUM(R6:R29)","v":0},null,{"$f":"SUM(T6:T29)","v":0},null,{"$f":"SUM(V6:V29)","v":0},null,{"$f":"SUM(X6:X29)","v":0},null,{"$f":"SUM(Z6:Z29)","v":0},null,{"$f":"SUM(AB6:AB29)","v":0},null,{"$f":"SUM(AD6:AD29)","v":0},null,{"$f":"SUM(AF6:AF29)","v":0},null,{"$f":"SUM(AH6:AH29)","v":0},null,{"$f":"SUM(AJ6:AJ29)","v":0},null,{"$f":"SUM(AL6:AL29)","v":0},null,{"$f":"SUM(AN6:AN29)","v":0},null,{"$f":"SUM(AP6:AP29)","v":0},null,{"$f":"SUM(AR6:AR29)","v":0}]
[]
[]
[]
["*Trade Discount % on published rates",null," "]
["*Settlement Discount %",null," "]
[]
["Definition of discounts"]
["A settlement discount is where a business offers the CSIR a discount when an invoice is paid on time or within 45 days from receipt of statement."]
["A trade discount is defined as a type of discount that is immediately deducted from the retail or proposal price of an item. "]
[]
[null,null,"Bidder must specify lead time in days from placing of a purchase order"]

{"sheet":"Plumbing Spares","index":8,"n_rows":162,"n_cols":44,"rows_kept":162,"merged":[[0,0,0,2],[1,0,1,2],[2,0,2,1],[3,4,3,11],[3,12,3,19],[3,20,3,27],[3,28,3,35],[3,36,3,43],[154,0,154,1],[155,0,155,1],[158,0,158,3],[159,0,159,3]]}
["Supply and delivery of Various Spares on an “as and when” required basis for five (5) years.  "]
["RFP: 0000/00/00/2024"]
["Bidder's Name",null,{"$f":"'Cover Page'!D21","v":0}]
[{"$nulls":4},"Year 1 ",{"$nulls":7},"Year 2",{"$nulls":7},"Year 3",{"$nulls":7},"Year 4",{"$nulls":7},"Year 5"]
["Category","CSIR Part Code","Product technical specifications ","Etimated  Quantity over 5 years","Unit Price per \n1 - 5 items \n(Excl. VAT)","Total Price (Excl VAT)","Unit Price per \n6- 10 items \n(Excl. VAT)","Total Price (Excl VAT)","Unit Price per 10 - 20 items\n(Excl. VAT) ","Total Price (Excl VAT)","Unit Price per above 20 items \n(Excl. VAT)","Total Price (Excl VAT)","Unit Price per \n1 - 5 items \n(Excl. VAT)","Total Price (Excl VAT)","Unit Price per \n6- 10 items \n(Excl. VAT)","Total Price (Excl VAT)","Unit Price per 10 - 20 items\n(Excl. VAT) ","Total Price (Excl VAT)","Unit Price per above 20 items \n(Excl. VAT)","Total Price (Excl VAT)","Unit Price per \n1 - 5 items \n(Excl. VAT)","Total Price (Excl VAT)","Unit Price per \n6- 10 items \n(Excl. VAT)","Total Price (Excl VAT)","Unit Price per 10 - 20 items\n(Excl. VAT) ","Total Price (Excl VAT)","Unit Price per above 20 items \n(Excl. VAT)","Total Price (Excl VAT)","Unit Price per \n1 - 5 items \n(Excl. VAT)","Total Price (Excl VAT)","Unit Price per \n6- 10 items \n(Excl. VAT)","Total Price (Excl VAT)","Unit Price per 10 - 20 items\n(Excl. VAT) ","Total Price (Excl VAT)","Unit Price per above 20 items \n(Excl. VAT)","Total Price (Excl VAT)","Unit Price per \n1 - 5 items \n(Excl. VAT)","Total Price (Excl VAT)","Unit Price per \n6- 10 items \n(Excl. VAT)","Total Price (Excl VAT)","Unit Price per 10 - 20 items\n(Excl. VAT) ","Total Price (Excl VAT)","Unit Price per above 20 items \n(Excl. VAT)","Total Price (Excl VAT)"]
["Plumbing","600705","1 inch Cascade Clamp (CASCADE'S Stainless Steel Repair Clamp)",10,null,{"$f":"D6*E6","v":0}]
["plumbing","600709","20mm plason adaptor - HDPE (High-Density Polyethylene)",5,null,{"$f":"D7*E7","v":0}]
["Plumbing","600706","25mm male plason coupling- HDPE (High-Density Polyethylene)",5,null,0]
["Plumbing","600704","3/4 inch  Cascade clamp (CASCADE'S Stainless Steel Repair Clamp)",40,null,0]
["Plumbing","600756","38mm Top Toilet Flusher Single (38MM Toilet Tank Button Single Push Flushing Toilet Button)",15,null,0]
["Plumbing","600792","Adapter plasson female 63mm - HDPE (High-Density Polyethylene)",5,null,0]
["Plumbing","600101","Adapter plasson male 32mm - HDPE (High-Density Polyethylene)",10,null,0]
["Plumbing","600103","Adapter plasson male 75mm - HDPE (High-Density Polyethylene)",5,null,0]
["Plumbing","600173","Adapter plasson straight 25mm - HDPE (High-Density Polyethylene)",5,null,0]
["Plumbing","600175","Adapter plasson straight 40mm - HDPE (High-Density Polyethylene)",15,null,0]
["Plumbing","600176","Adapter plasson straight 50mm - HDPE (High-Density Polyethylene)",10,null,0]
["Plumbing","600177","Adapter plasson straight 63mm - HDPE (High-Density Polyethylene)",10,null,0]
["Plumbing","600178","Adapter plasson straight 75mm - HDPE (High-Density Polyethylene)",10,null,0]
["Plumbing","600104","Adapter PVC female 50mm - PVC (Polyvinyl Chloride)",15,null,0]
["Plumbing","600105","Adapter PVC Male 50mm - PVC (Polyvinyl Chloride)",25,null,0]
["Plumbing","600112","Ball cock brass 2 ways  1/2\" Lever (Valve Ball Lever Full Bore FxF 1/2\"Brass 1's)",110,null,0]
["Plumbing","600113","Ball cock brass 2 ways 3/4\" Lever (Valve Ball Lever Full Bore FxF 3/4\"Brass 1's)",110,null,0]
["Plumbing","600115","Basin Waste WITH Plug 32mm (BASIN WASTE & PLUG UNSLOTTED CP 32mm) ",15,null,0]
["Plumbing","600122","Bend PVC SV 75X45mm PlainPVC (Polyvinyl Chloride)",5,null,0]
["Plumbing","600128","Bottle Trap PVC anti-vac 40X40PVC (Polyvinyl Chloride)",5,null,0]
["Plumbing","600137","Bush galvanized 1/2 X 3/4\"Normal Galvanised",65,null,0]
["Plumbing","600795","Clamp Cascade 150mm CASCADE'S Stainless Steel Repair Clamp",15,null,0]
["Plumbing","600793","Clamp Cascade 15mm CASCADE'S Stainless Steel Repair Clamp",5,null,0]
["Plumbing","600794","Clamp Cascade 50mm CASCADE'S Stainless Steel Repair Clamp",30,null,0]
["Plumbing","600157","Clamps holderbart 110MM - Holderbat Aluminium Agriney",20,null,0]
["Plumbing","600158","Clamps holderbart 50MM - Holderbat Aluminium Agriney",25,null,0]
["Plumbing","600162","Conex Male Coupling 28MM meta-aramid fibers resistant to temperatures of 100-250°C (212-482°F)",50,null,0]
["Plumbing","600163","Connector flexible 15X350MM",70,null,0]
["Plumbing","600269","Connector flexible 15X450MM",145,null,0]
["Plumbing","600164","Connector flush pipe white PF 50 (Colour, White. Material, Rubber. Range)",5,null,{"$f":"D35*E35","v":0}]
["Plumbing","600165","Connector pan PVC 110mm - PVC (Polyvinyl Chloride)",5,null,0]
["Plumbing","600166","Copper Elbow 22MM - class 1",420,null,0]
["Plumbing","600172","Coupler Johnson 3/4\" - Normal Galvanised",5,null,0]
["Plumbing","600179","Coupling conex female 15mm; meta-aramid fibers resistant to temperatures of 100-250°C (212-482°F)",205,null,0]
["Plumbing","600180","Coupling conex female 22mm; meta-aramid fibers resistant to temperatures of 100-250°C (212-482°F)",130,null,0]
["Plumbing","600181","Coupling conex female 28mm; meta-aramid fibers resistant to temperatures of 100-250°C (212-482°F)",40,null,0]
["Plumbing","600182","Coupling conex male 15mm; meta-aramid fibers resistant to temperatures of 100-250°C (212-482°F)",540,null,0]
["Plumbing","600183","Coupling conex male 22mm; meta-aramid fibers resistant to temperatures of 100-250°C (212-482°F)",375,null,0]
["Plumbing","600184","Coupling conex straight 15mm; meta-aramid fibers resistant to temperatures of 100-250°C (212-482°F)",145,null,0]
["Plumbing","600185","Coupling conex straight 22mm; meta-aramid fibers resistant to temperatures of 100-250°C (212-482°F)",60,null,0]
["Plumbing","600186","Coupling conex straight 28mm; meta-aramid fibers resistant to temperatures of 100-250°C (212-482°F)",35,null,0]
["Plumbing","600187","Coupling copper 15mm - class 1",5,null,0]
["Plumbing","600189","Coupling solded female 15mmx 3/4\" Brass",10,null,{"$f":"D48*E48","v":0}]
["Plumbing","600199","Drain Cleaner 5kg - Granules  Material",55,null,0]
["Plumbing","600200","Drain Cleaner Acid 1 litre (Liquid)",25,null,0]
["Plumbing","600205","Elbow conex 15MM 90 DEG; meta-aramid fibers resistant to temperatures of 100-250°C (212-482°F)",430,null,0]
["Plumbing","600206","Elbow conex 22MM 90 DEG; meta-aramid fibers resistant to temperatures of 100-250°C (212-482°F)",375,null,0]
["Plumbing","600207","Elbow conex 28MM 90 Deg; meta-aramid fibers resistant to temperatures of 100-250°C (212-482°F)",20,null,0]
["Plumbing","600209","Elbow conex female 15MM 90 DEG; meta-aramid fibers resistant to temperatures of 100-250°C (212-482°F)",10,null,0]
["Plumbing","600210","Elbow conex female 22MM 90DEG; meta-aramid fibers resistant to temperatures of 100-250°C (212-482°F)",25,null,0]
["Plumbing","600211","Elbow conex male 15MM 90DEG; meta-aramid fibers resistant to temperatures of 100-250°C (212-482°F)",10,null,0]
["Plumbing","600212","Elbow conex male 22MM 90DEG; meta-aramid fibers resistant to temperatures of 100-250°C (212-482°F)",10,null,0]
["Plumbing","600213","Elbow copper 1/2\" - a high purity alloy C12200",225,null,0]
["Plumbing","600214","Elbow copper 22mm 45 deg - a high purity alloy C12200",20,null,0]
["Plumbing","600216","Elbow copper 45 degrees 15mm - a high purity alloy C12200",20,null,{"$f":"D60*E60","v":0}]
["Plumbing","600223","Elbow galvanized 2\" Normal Galvanised",5,null,0]
["Plumbing","600224","Elbow galvanized 3/4\" Normal Galvanised",25,null,0]
["Plumbing","600226","Elbow plasson 32MM - HDPE (High-Density Polyethylene)",15,null,0]
["Plumbing","600230","Elbow PVC 50mm IE - PVC (Polyvinyl Chloride)",190,null,0]
["Plumbing","600232","Elbow PVC drain plain 75MM - PVC (Polyvinyl Chloride)",5,null,0]
["Plumbing","600233","Elbow PVC E45 Degrees IE 50MM - PVC (Polyvinyl Chloride)",65,null,0]
["Plumbing","600272","Flushing mechanism toilet Low level Flash (Pan Connector Agrinet Wirquin Extendable with Fins 110mm)",70,null,0]
["Plumbing","600274","Flux plumbers 100g (Zinc Chloride and Ammonium Chloride.)",10,null,0]
["Plumbing","600777","GARDEN TAP 15MM (Crutch heavy-pattern, standard head part, 1/2, rough brass)",30,null,0]
["Plumbing","600785","GARDEN TAP 20MM (Crutch heavy-pattern, standard head part, 1/2, rough brass)",15,null,0]
["Plumbing","600293","Gas Ro 2000 360ml/210g - C2000 Oil (CBD 40mg/mL) - 50ml, Cannrix Duo 15:15 ... 210g",15,null,{"$f":"D71*E71","v":0}]
["Plumbing","600294","Flange Gasket Spiral Element FLG337",5,null,0]
["Plumbing","600295","Geyser 100 litre - SABS Approved",45,null,0]
["Plumbing","600297","Geyser 200 Litre - SABS Approved",5,null,0]
["Plumbing","600299","Geyser vacuum Breaker 22MM (APEX VRV-22CXC 22mm VACUUM CONTROL VALVE CXC.)",170,null,{"$f":"D75*E75","v":0}]
["Plumbing","600328","Glue Cement Non Pressure PVC 200 - Mlfast setting solvent-based cementing adhesive",30,null,{"$f":"D76*E76","v":0}]
["Plumbing","600329","Glue Cement Pressure PVC  200Ml (PVC Weld Pipe Cement Adhesive High Pressure)",40,null,0]
["Plumbing","600338","Gyser underbasin 10 Liter - SABS Approved",75,null,0]
["Plumbing","600347","Head Part Crossn Converter 5/8\"Cachet Cross Converter Headpart Hot 5/8″ M/P",15,null,0]
["Plumbing","600349","Headpart with handle 15MM light  pattern taps1/2\" euro head part, chrome-plated",145,null,0]
["Plumbing","600350","Hemps plumbing 200GFine, long-fibre flax/hemp, which comes from the stem of the flax plant",10,null,0]
["Plumbing","600355","Hydroboil 10 Liter - SABS Approved",15,null,0]
["Plumbing","600367","Junction Tee PVC 50MM - PVC (Polyvinyl Chloride)",10,null,0]
["Plumbing","600368","Junction Tee PVC IE 50MM - PVC (Polyvinyl Chloride)",25,null,0]
["Plumbing","600370","Junction Y PVC drain pipe 50MM - PVC (Polyvinyl Chloride)",10,null,0]
["Plumbing","600422","Mixer basin 15MM (Heavy Pattern Medical elbow action sink mixer, chrome)",15,null,0]
["Plumbing","600423","Mixer sink 1TH Stella # 3396 Star Wall Mount Swivel Sink Mixer Tap",15,null,0]
["Plumbing","600424","Mixer spout CP swivel (SINK MIXER SPOUT CP LIGHT PATTERN 0305)",25,null,0]
["Plumbing","600426","Nipple galvanized 1\" - Normal Galvanised",10,null,0]
["Plumbing","600427","Nipple galvanized 1/2\" - Normal Galvanised",75,null,0]
["Plumbing","600429","Nipple galvanized 2\" - Normal Galvanised",5,null,0]
["Plumbing","600817","Nipple Galvanized 3\" - Normal Galvanised",10,null,0]
["Plumbing","600430","Nipple galvanized 3/4\" - Normal Galvanised",95,null,0]
["Plumbing","600467","Pillar Tap 15MM Star 211Tap Pillar Cobra Star 15mm Chrome",25,null,0]
["Plumbing","600470","Pipe drain PVC 50MMX6M PVC (Polyvinyl Chloride)",30,null,0]
["Plumbing","600472","Pipe galvanised 15MM- Normal Galvanised",24,null,0]
["Plumbing","600473","Pipe galvanised 22MM - Normal Galvanised",30,null,0]
["Plumbing","600483","Plugs galvanised 1/2\" - Normal Galvanised",45,null,0]
["Plumbing","600484","Plugs galvanized 1 1/4\" - Normal Galvanised",10,null,0]
["Plumbing","600487","Plugs galvanized 3/4\" - Normal Galvanised",65,null,0]
["Plumbing","600501","Reducer conex 22MMX15MM meta-aramid fibers resistant to temperatures of 100-250°C (212-482°F)",75,null,0]
["Plumbing","600502","Reducer conex 22MMX28MM meta-aramid fibers resistant to temperatures of 100-250°C (212-482°F)",15,null,{"$f":"D102*E102","v":0}]
["Plumbing","600503","Reducer copper 22MMx15MM - Class 1",95,null,{"$f":"D103*E103","v":0}]
["Plumbing","600505","Reducer PVC eccentric 110X50MM PVC (Polyvinyl Chloride)",5,null,0]
["Plumbing","600512","Rubber S Trap 32X40 MM (S-Trap Reseal Rubber 32 x 40 mm)",5,null,0]
["Plumbing","600524","Seal Ring toilet Wax Pan (High-quality wax material for superior sealing performance)",190,null,0]
["Plumbing","600525","Seat Wooden Delux Regal White (024454- WOODEN TOILET SEAT with NYLON HINGE WHITE.)",210,null,0]
["Plumbing","600797","Shower armS - TAINLESS STEEL SQUARE SHOWER ARM LONG 15x400mm",30,null,0]
["plumbing","600543","Shower Rose ifunetion minta 95mm diameter. Swivel knuckle. 15mm inner thread",85,null,0]
["Plumbing","600549","Sink Waste - Unslotted Basin Waste · Height: 74.2mm. Diameter: 63mm.",5,null,0]
["Plumbing","600550","Socket copper 28MM - class 1",5,null,0]
["Plumbing","600551","Socket double PVC 50mm - PVC (Polyvinyl Chloride)",60,null,0]
["Plumbing","600823","Socket galvanized 1 &1/4\" - Normal Galvanised",10,null,0]
["Plumbing","600553","Socket galvanized 1\" - Normal Galvanised",5,null,0]
["Plumbing","600554","Socket galvanized 1/2\" - Normal Galvanised",5,null,0]
["Plumbing","600557","Socket galvanized 3/4\" - Normal Galvanised",25,null,0]
["Plumbing","600560","Solded Male coupling 22mmx3/4\" - Brass",10,null,{"$f":"D117*E117","v":0}]
["Plumbing","600561","Solder Wire 97/3 2,00MMX250g;  Material, Solder Wire. Range, Copcal. Size, 0.0.",25,null,{"$f":"D118*E118","v":0}]
["Plumbing","600563","Spiral Element 3KW (Spiral Geyser Element – 3Kw)",10,null,0]
["Plumbing","600572","Stop-end Plain female  PVC 110MM PVC (Polyvinyl Chloride)",10,null,0]
["Plumbing","600573","Stop-end PVC 50MM White PVC (Polyvinyl Chloride)",45,null,0]
["Plumbing","600574","Straight adapater copper 22MM - Class 1",120,null,0]
["Plumbing","600575","Straight male coupling copper 28MM X 22MM - Class 1",35,null,0]
["Plumbing","600596","Tee Piece conex 15MM meta-aramid fibers resistant to temperatures of 100-250°C (212-482°F)",85,null,0]
["Plumbing","600597","Tee Piece conex 22MM meta-aramid fibers resistant to temperatures of 100-250°C (212-482°F)",75,null,0]
["Plumbing","600598","Tee piece copper 15MM class 1",25,null,0]
["Plumbing","600599","Tee piece copper 22MM class 1",135,null,0]
["Plumbing","600600","Tee piece galvanized 1/2\" - Normal Galvanised",5,null,0]
["Plumbing","600608","Tee piece plasson 75MM - HDPE (High-Density Polyethylene)",10,null,0]
["Plumbing","600610","Thermostat 20AMP Round Geyser Thermostat 20A",40,null,0]
["Plumbing","600614","Thread tape 19mmX.1mmX30m .",250,null,{"$f":"D131*E131","v":0}]
["Plumbing","600618","Trap P 40x40 Plain Mini Rubber Reseal",45,null,{"$f":"D132*E132","v":0}]
["Plumbing","600619","Tube copper 15MMX5.5M Copper pipe Class 1",115,null,0]
["Plumbing","600620","Tube copper 22MMX5.5M Copper pipe Class 1",160,null,0]
["Plumbing","600621","Tube copper 28MMX5.5M Copper pipe Class 1",19,null,0]
["Plumbing","600622","Tube copper tube 42MMX6M Copper pipe Class 1",5,null,0]
["Plumbing","600623","Union galvanized 1\" - Normal Galvanised",30,null,0]
["Plumbing","600626","Union galvanized 2\" - Normal Galvanised",10,null,0]
["Plumbing","600788","Urinal Cartridge 10204 330  WALCRO 102 (S-10204 SPARE CARTRIDGE FOR 330 & 102 VALVES)",5,null,0]
["Plumbing","600629","Urinal Flush Master - Push Button J6.00 (Spare FJ Push button assembly TLT)",35,null,0]
["Plumbing","600790","Urinal spreader large - Chrome finished",15,null,0]
["Plumbing","600635","Valve inlet fill master (Bottom and side inlet valve)",110,null,0]
["Plumbing","600636","Valve lacto pressure control 100 Kpa (LAT25 LATCO STANDARD CONTROL VALVE 100kPa)",10,null,0]
["Plumbing","600637","Valve mini ball 15mm (MxF 15mm x 15mm Mini Chrome)",60,null,0]
["Plumbing","600639","Valve pressure Control 400KPA 22mm (CXC 400KPA Pressure Control Valve (22mm)) ",70,null,{"$f":"D145*E145","v":0}]
["Plumbing","600641","Valve safety female 600 KPA 2mm (406CX FEMALE TEMP & PRESSURE SAFETY VALVE 600kPa 20mm)",10,null,{"$f":"D146*E146","v":0}]
["Plumbing","600649","Valve Urinal piston (Urinal Piston for Flush Valve Chrome)",75,null,0]
["Plumbing","600654","Wall Plate 15MM meta-aramid fibers resistant to temperatures of 100-250°C (212-482°F)",20,null,0]
["Plumbing","600660","Washer Tap 22mm - Vulcanised fibre",20,null,0]
["Plumbing","600661","Washers Tap 15mm - Vulcanised fibre",10,null,0]
["plumbing","600671","White Foxy fit Pan connector foxy 01 (Clour White 110mm)",20,null,0]
[null,null,"Total Price Incl. VAT ( R)",null,null,{"$f":"SUM(F6:F151)","v":0},null,{"$f":"SUM(H6:H151)","v":0},null,{"$f":"SUM(J6:J151)","v":0},null,{"$f":"SUM(L6:L151)","v":0},null,{"$f":"SUM(N6:N151)","v":0},null,{"$f":"SUM(P6:P151)","v":0},null,{"$f":"SUM(R6:R151)","v":0},null,{"$f":"SUM(T6:T151)","v":0},null,{"$f":"SUM(V6:V151)","v":0},null,{"$f":"SUM(X6:X151)","v":0},null,{"$f":"SUM(Z6:Z151)","v":0},null,{"$f":"SUM(AB6:AB151)","v":0},null,{"$f":"SUM(AD6:AD151)","v":0},null,{"$f":"SUM(AF6:AF151)","v":0},null,{"$f":"SUM(AH6:AH151)","v":0},null,{"$f":"SUM(AJ6:AJ151)","v":0},null,{"$f":"SUM(AL6:AL151)","v":0},null,{"$f":"SUM(AN6:AN151)","v":0},null,{"$f":"SUM(AP6:AP151)","v":0},null,{"$f":"SUM(AR6:AR151)","v":0}]
[]
[]
["*Trade Discount % on published rates",null," "]
["*Settlement Discount %",null," "]
[]
["Definition of discounts"]
["A settlement discount is where a business offers the CSIR a discount when an invoice is paid on time or within 45 days from receipt of statement."]
["A trade discount is defined as a type of discount that is immediately deducted from the retail or proposal price of an item. "]
[]
[null,null,"Bidder must specify lead time in days from placing of a purchase order"]